Cogmind - Beta 16.1 @@@ ROGUE MODE // 2026.04.07 @ 15:20:39 Player: Maelyn Result: Destroyed by S-10 Pest with Light Assault Rifle Performance ------------- Evolutions (0) 0 Regions Visited (4) 800 Robots Destroyed (23) 115 Value Destroyed (340) 340 Prototype IDs (0) 0 Alien Tech Used (0) 0 Bonus (0) 0 TOTAL SCORE: 1255 Bonus ------- None Cogmind --------- Core Integrity 0/250 Matter 202/300 Energy 92/100 System Corruption 7% Temperature Cool (27) Movement Core (200) Ox3 Location -9/Mines Parts ------- > --- POWER (1) -------- (None) > --- PROPULSION (2) --- (None) > --- UTILITY (2) ------ Medium Storage Unit > --- WEAPON (2) ------- Small Laser > --- INVENTORY (10) --- Light Treads Small Battery (100) Medium Battery (150) Large Matter Pod (100) Terrain Scan Processor Light Armor Plating Light Armor Plating Light Assault Rifle Light Assault Rifle Rocket Launcher Peak State ------------ > --- POWER ------------ Light Nuclear Core > --- PROPULSION ------- Light Treads Light Treads > --- UTILITY ---------- Small Storage Unit Improved Terrain Scanner > --- WEAPON ----------- Assault Rifle Light Assault Rifle > --- INVENTORY -------- Light Ion Engine Aluminum Leg Aluminum Leg Light Armor Plating Light Armor Plating Medium Laser Small Laser Grenade Launcher [Rating: 11] Favorites ----------- Power Ion Engine Engine Ion Engine Power Core Light Nuclear Core Propulsion Light Treads Treads Light Treads Leg Aluminum Leg Utility Light Armor Plating Device Improved Terrain Scanner Storage Small Storage Unit Protection Light Armor Plating Weapon Assault Rifle Energy Gun Medium Laser Energy Cannon Beam Cannon Ballistic Gun Assault Rifle Launcher Grenade Launcher Build | -11 -10 -10 -10 -9 ------- Run | Yrd Mat Min Exi Min Slots Evolved . | . . . . . Power . | . . . . . Propulsion . | . . . . . Utility . | . . . . . Weapon . | . . . . . Parts Attached 23 | 7 4 9 1 2 Power 4 | 1 1 2 . . Engine 3 | 1 . 2 . . Core 1 | . 1 . . . Reactor . | . . . . . Propulsion 6 | 2 . 4 . . Treads 4 | 2 . 2 . . Leg 2 | . . 2 . . Wheel . | . . . . . Hover . | . . . . . Flight . | . . . . . Utility 5 | 2 1 1 1 . Device 1 | 1 . . . . Storage 2 | 1 . . 1 . Processor . | . . . . . Hackware . | . . . . . Protection 2 | . 1 1 . . Artifact . | . . . . . Weapon 8 | 2 2 2 . 2 Energy Gun 3 | 1 1 . . 1 Energy Cannon 1 | . . . . 1 Ballistic Gun 3 | 1 1 1 . . Ballistic Cannon . | . . . . . Launcher 1 | . . 1 . . Special Weapon . | . . . . . Impact Weapon . | . . . . . Slashing Weapon . | . . . . . Piercing Weapon . | . . . . . Special Melee Weapon . | . . . . . Unidentified Prototypes . | . . . . . Parts Lost 10 | . 2 4 . 4 Power 2 | . . 1 . 1 Propulsion 3 | . . 1 . 2 Utility 3 | . 1 1 . 1 Weapon 2 | . 1 1 . . Highest Loss Streak 4 | . 2 4 . 3 To Critical Strikes . | . . . . . Average Backups 7 | 3 7 7 9 10 Power . | 1 1 . . . Propulsion 1 | 1 2 1 1 1 Utility 3 | . 1 3 5 6 Weapon 2 | . 2 2 3 3 Tool/Special . | . . . . . Unused Backups 9 | . . . . 9 Power . | . . . . . Propulsion 1 | . . . . 1 Utility 6 | . . . . 6 Weapon 2 | . . . . 2 Tool/Special . | . . . . . Average Slot Usage (%) 98 | . 99 98 100 93 Engine 13 | . 13 12 14 12 Treads 25 | . 28 22 28 26 Leg 1 | . . 4 . . Device 3 | . 13 . . . Storage 14 | . 14 14 14 14 Protection 10 | . . 13 14 10 Energy Gun 3 | . 8 2 . 6 Ballistic Gun 21 | . 19 19 28 15 Launcher 2 | . . 5 . . Peak Build Rating 11 | 9 11 10 8 8 Average Rating 7 | 4 9 7 8 7 On Entrance 7 | . 9 10 8 8 Avg Prop Armor Cover (%) . | . . . . . Naked Turns . | . . . . . Heaviest Build 22 | 13 18 19 22 22 Greatest Support 40 | 40 40 40 40 40 Greatest Overweight (x) 3 | 1 . . . 3 Average Overweight (x) . | . . . . . Largest Inventory Capacity 10 | 8 8 8 10 10 Average Capacity 8 | 5 8 8 9 10 Most Carried 10 | 5 8 8 10 10 Average Carried 7 | 4 7 7 9 10 Final Capacity 10 | 8 8 8 10 10 Final Carried 10 | 4 7 8 10 10 Class Distribution -------------------- 55% | Derelict-Mutant 44% | Mutant Dominant Class ---------------- Mutant | -10/Materials Derelict-Mutant | -10/Mines Derelict-Mutant | -10/Exiles Derelict-Mutant | -9/Mines Resources | -11 -10 -10 -10 -9 ----------- Run | Yrd Mat Min Exi Min Matter Collected 772 | 136 43 428 50 115 Remotely . | . . . . . Salvage Created 542 | 12 222 150 . 158 Parts 41 | 3 13 5 . 20 Haulers Intercepted . | . . . . . Recyclers Shooed 1 | . 1 . . . Parts Field Recycled . | . . . . . Retrieved Matter . | . . . . . Parts Self-Destructed . | . . . . . Prevented . | . . . . . Parts Restored . | . . . . . Kills | -11 -10 -10 -10 -9 ------- Run | Yrd Mat Min Exi Min Combat Hostiles Destroyed 23 | . 5 7 . 11 Guns 13 | . 3 2 . 8 Cannons 3 | . . . . 3 AOE 7 | . 2 5 . . Classes Destroyed 7 | 1 5 1 . . Builder 2 | . 1 1 . . Tunneler 2 | 1 . 1 . . Recycler 2 | . 1 1 . . Watcher 1 | . 1 . . . Swarmer 13 | . 2 . . 11 Grunt 3 | . 3 . . . Assembled 7 | . . 7 . . Best Kill Streak 6 | 1 4 6 . 4 Combat Bots Only 6 | . 2 6 . 4 Max Kills in Single Turn 4 | 1 4 3 . 1 Gunslinging . | . . . . . Exploded 2 | . 2 2 . . Melee . | . . . . . Uniques/NPCs Destroyed . | . . . . . Combat | -11 -10 -10 -10 -9 -------- Run | Yrd Mat Min Exi Min Hostile Shots Fired 170 | . 29 38 . 103 Missed 37 | . 11 7 . 19 Hits 133 | . 18 31 . 84 Melee 12 | . . 12 . . Projectile 121 | . 18 19 . 84 AOE 2 | . . 2 . . Critical Strikes 1 | . . . . 1 Damage Taken 1701 | . 404 620 . 677 Core 253 | . 37 116 . 100 Absorbed by Shields . | . . . . . Core Remaining (%) 100 | 100 . . . . Volleys Fired 62 | 1 14 15 . 32 Largest 2 | 2 2 2 . 2 Hottest 115 | 70 70 115 . 100 Shots Fired 119 | 2 28 28 1 60 Gun 99 | 2 28 24 1 44 Cannon 16 | . . . . 16 Launcher 4 | . . 4 . . Special . | . . . . . Kinetic 67 | 1 22 16 1 27 Thermal 48 | 1 6 8 . 33 Explosive 4 | . . 4 . . Electromagnetic . | . . . . . Robot Hit Streak 11 | 2 5 11 . 4 Robot Miss Streak 7 | . 2 2 . 7 Penetration Max . | . . . . . Secondary Targets 1 | . . . . 1 Max Gunslinging Chain 1 | . . . . 1 Shots Hit Robots 61 | 2 17 19 . 23 Core Hits 46 | 1 11 23 . 11 Critical Kills . | . . . . . Critical Parts Destroyed . | . . . . . Critical Strikes . | . . . . . Melee Attacks . | . . . . . Impact . | . . . . . Slashing . | . . . . . Piercing . | . . . . . Sneak Attacks . | . . . . . Combat Hostiles . | . . . . . Follow-up Attacks . | . . . . . Damage Inflicted 1639 | 24 592 707 . 316 Guns 651 | 24 184 250 . 193 Cannons 123 | . . . . 123 Explosions 865 | . 408 457 . . Melee . | . . . . . Ramming . | . . . . . Kinetic 421 | 12 145 137 . 127 Thermal 761 | 12 447 113 . 189 Explosive 457 | . . 457 . . Electromagnetic . | . . . . . Impact . | . . . . . Slashing . | . . . . . Piercing . | . . . . . Highest Corruption 7 | . . 7 7 7 Average Corruption 7 | . . 7 7 7 Corruption Purged . | . . . . . Corruption Blocked . | . . . . . Effects 70 | . . 35 26 9 Message Errors 22 | . . 12 8 2 Matter Fused 16 | . . 9 7 . Heat Flow Errors 9 | . . 6 1 2 Energy Discharges 7 | . . 3 2 2 Parts Rejected 1 | . . . . 1 Data Loss (minor) 7 | . . 2 4 1 Data Loss (major) 2 | . . 1 1 . Misfires 3 | . . 2 1 . Alerts 2 | . . . 2 . Weapon Failures 1 | . . . . 1 Overload Shots . | . . . . . Overflow Damage 113 | . 113 . . . Projectiles . | . . . . . Explosions 113 | . 113 . . . Melee . | . . . . . Knockbacks . | . . . . . Impact . | . . . . . Kinetic . | . . . . . Secondary . | . . . . . Self-Inflicted Damage 165 | . 135 30 . . Shots 3 | . 2 1 . . Rammed . | . . . . . Targets Rammed . | . . . . . Kicked . | . . . . . Crushed . | . . . . . Highest Temperature 360 | 9 45 276 199 360 Average Temperature 117 | 6 16 108 105 156 Received Heat Transfer 173 | . 93 80 . . Effects 3 | . . 1 . 2 Energy Bleed 1 | . . 1 . . Matter Decay 2 | . . . . 2 Siege Activations . | . . . . . Martial Activations . | . . . . . Shielding Activations . | . . . . . Robots Disrupted . | . . . . . Combat Hostiles . | . . . . . Robots Corrupted . | . . . . . Combat Hostiles . | . . . . . Parts Fried . | . . . . . Impact Corruptions . | . . . . . Robots Melted . | . . . . . Combat Hostiles . | . . . . . Parts Melted 3 | . . . . 3 Heat Transferred 1103 | 37 361 296 . 409 Parts Sabotaged . | . . . . . Parts Stolen . | . . . . . Parts Stripped . | . . . . . Power Chain Reactions . | . . . . . Alert | -11 -10 -10 -10 -9 ------- Run | Yrd Mat Min Exi Min Maximum Alert Level . | . . . . . Low Security (%) 100 | 100 100 100 . 100 Level 1 . | . . . . . Level 2 . | . . . . . Level 3 . | . . . . . Level 4 . | . . . . . Level 5 . | . . . . . High Security . | . . . . . Max Security . | . . . . . Peak Influence 171 | 5 171 63 . 150 Initial 63 | . . 63 . . Average 14 | . 12 4 . 74 Influence Increases 572 | 5 256 31 . 280 Destroy 0b10 Robot/C 320 | . 100 . . 220 Destroy 0b10 Robot/NC 35 | 5 15 15 . . Destroy Leader 62 | . 32 . . 30 Disable Machine 45 | . 45 . . . Destroy Structure 65 | . 49 16 . . Lose Combat Pursuer 45 | . 15 . . 30 Influence Decreases 452 | 5 93 194 . 160 Entered New Map 100 | . . 100 . . Time Decay 256 | 5 73 58 . 120 Lost Part 96 | . 20 36 . 40 Squads Dispatched 1 | . 1 . . . Investigation 1 | . 1 . . . Extermination . | . . . . . Reinforcement . | . . . . . Assault . | . . . . . Garrison . | . . . . . Intercept . | . . . . . Searches Triggered . | . . . . . Construction Impeded . | . . . . . Haulers Reinforced . | . . . . . Active Scanning Responses . | . . . . . Cargo Convoy Interrupts . | . . . . . Stealth | -11 -10 -10 -10 -9 --------- Run | Yrd Mat Min Exi Min Distress Signals 1 | . . 1 . . Communications Jammed . | . . . . . Distress Signals . | . . . . . Times Spotted 44 | . 11 19 . 14 Peak Tracking Total 15 | . 3 15 . 4 Tactical Retreats 2 | . 1 . . 1 Traps | -11 -10 -10 -10 -9 ------- Run | Yrd Mat Min Exi Min Traps Triggered 2 | . 2 . . . Indirectly . | . . . . . Trap Hack Attempts . | . . . . . Triggered . | . . . . . Disarmed . | . . . . . Reprogrammed . | . . . . . Reused . | . . . . . Traps Extracted . | . . . . . Installed . | . . . . . Triggered . | . . . . . Machines | -11 -10 -10 -10 -9 ---------- Run | Yrd Mat Min Exi Min Machines Disabled 3 | . 3 . . . Max in Single Turn 3 | . 3 . . . Machines Repaired . | . . . . . Machines Dismantled . | . . . . . Machines Sabotaged . | . . . . . Overloaded Fab Kills . | . . . . . Hacking | -11 -10 -10 -10 -9 --------- Run | Yrd Mat Min Exi Min Machines Accessed . | . . . . . Terminals . | . . . . . Fabricators . | . . . . . Repair Stations . | . . . . . Recycling Units . | . . . . . Scanalyzers . | . . . . . Garrison Access . | . . . . . Total Hacks . | . . . . . Successful . | . . . . . Failed . | . . . . . Catastrophic . | . . . . . Database Lockouts . | . . . . . Manual . | . . . . . Terminals . | . . . . . Fabricators . | . . . . . Repair Stations . | . . . . . Recycling Units . | . . . . . Scanalyzers . | . . . . . Garrison Access . | . . . . . Terminal Hacks . | . . . . . Fabricator Hacks . | . . . . . Repair Station Hacks . | . . . . . Recycling Unit Hacks . | . . . . . Scanalyzer . | . . . . . Garrison Access Hacks . | . . . . . Unauthorized Hacks . | . . . . . Terminals . | . . . . . Fabricators . | . . . . . Repair Stations . | . . . . . Recycling Units . | . . . . . Scanalyzers . | . . . . . Garrison Access . | . . . . . Data Cores Recovered . | . . . . . Used . | . . . . . Hacking Detections . | . . . . . Full Trace Events . | . . . . . Feedback Events . | . . . . . Feedback Blocked . | . . . . . Robot Schematics Acquired . | . . . . . Robots Built . | . . . . . Authchips . | . . . . . Time . | . . . . . Total Robot Build Rating . | . . . . . Part Schematics Acquired . | . . . . . Parts Built . | . . . . . Authchips . | . . . . . Time . | . . . . . Total Part Build Rating . | . . . . . Part Studies Acquired . | . . . . . Parts Repaired . | . . . . . Time . | . . . . . Parts Recycled . | . . . . . Recycled Matter . | . . . . . Retrieved Matter . | . . . . . Retrieved Components . | . . . . . Parts Scanalyzed . | . . . . . Part Schematics Acquired . | . . . . . Parts Damaged . | . . . . . Bothacking | -11 -10 -10 -10 -9 ------------ Run | Yrd Mat Min Exi Min Used RIF Installer . | . . . . . Robots Hacked . | . . . . . Non-combat . | . . . . . Combat . | . . . . . Robot Hacks Applied . | . . . . . Relay Couplers Released . | . . . . . Fabnet Peak Effective % . | . . . . . Robots Rewired . | . . . . . Allies Hacked . | . . . . . Hacks Repelled . | . . . . . Allies | -11 -10 -10 -10 -9 -------- Run | Yrd Mat Min Exi Min Total Allies . | . . . . . Largest Group . | . . . . . Highest-Rated Group . | . . . . . Highest-Rated Ally . | . . . . . Total Orders . | . . . . . Ally Attacks . | . . . . . Total Damage . | . . . . . Kills . | . . . . . Allies Corrupted . | . . . . . Allies Melted . | . . . . . Intel | -11 -10 -10 -10 -9 ------- Run | Yrd Mat Min Exi Min Active Infowar (turns) 606 | 4 602 . . . Terrain 606 | 4 602 . . . Robot Analysis Total . | . . . . . Derelict Logs Recovered 1 | . . 1 . . Drone Launches . | . . . . . Drone Recoveries . | . . . . . Exploration | -11 -10 -10 -10 -9 ------------- Run | Yrd Mat Min Exi Min Turns Passed 2782 | 86 626 1081 747 242 Spaces Moved 1628 | 53 356 664 465 90 Core 20 | 19 . . . 1 Treads 1467 | 34 356 523 465 89 Legs 141 | . . 141 . . Wheels . | . . . . . Hover . | . . . . . Flight . | . . . . . Fastest Speed 50 | 50 160 120 160 160 Average Speed 155 | 126 160 151 160 160 Slowest Speed 200 | 160 160 160 160 200 Overloaded Moves . | . . . . . Propulsion Burnouts . | . . . . . Robots Hopped . | . . . . . Potential Cave-ins . | . . . . . Cave-ins Triggered . | . . . . . Exploration Rate (%) 49 | 3 53 96 70 26 Regions Visited 4 Branch Regions 3 Pre-discovered Areas 1 | . . 1 . . Known Exits Taken . | . . . . . Unknown Exits Taken 4 | 1 1 1 1 . Scrap Searched 1 | . . 1 . . Spaces Dug . | . . . . . Terrain Destroyed 86 | . 65 21 . . Melee . | . . . . . Projectile . | . . . . . AOE 86 | . 65 21 . . Terrain Rammed . | . . . . . Walls Destroyed . | . . . . . Machines Disabled . | . . . . . Actions | -11 -10 -10 -10 -9 --------- Run | Yrd Mat Min Exi Min Total 1771 | 69 385 716 469 132 Wait 15 | . 4 11 . . Move 1624 | 52 355 663 464 90 Hop . | . . . . . Pick Up 28 | 9 5 9 2 3 Fast Attach 4 | 2 . 2 . . Attach 11 | 5 2 4 . . Detach . | . . . . . Swap 14 | . 4 5 1 4 Drop 12 | . 1 7 1 3 Fire 62 | 1 14 15 . 32 Melee . | . . . . . Ram . | . . . . . Kick . | . . . . . Crush . | . . . . . Escape Stasis . | . . . . . Rewire 1 | . . . 1 . Trap . | . . . . . Miscellaneous . | . . . . . Route ------- -11/Scrapyard -10/Materials (discovered 3 exits: [*Mat] / [*Min x2]) -10/Mines (discovered 3 exits: [*Mat x2] / *Exi) -10/Exiles (discovered 2 exits: [*Min x2]) -9/Mines (discovered 1 exit: [*Mat]) History --------- Turn | Location | Event 7 | -11/Scrapyard | Discovered new exit (range 15) 87 | -11/Scrapyard | Entered Materials 118 | -10/Materials | Discovered new exit (range 6) 298 | -10/Materials | Discovered new exit (range 13) 313 | -10/Materials | Build established: Mutant 608 | -10/Materials | Discovered new exit (range 15) 713 | -10/Materials | Entered Mines 723 | -10/Mines | Learned Materials emergency access door positions 754 | -10/Mines | Assembled infested the area 796 | -10/Mines | Core integrity fell below 50% 834 | -10/Mines | Lost 4 parts (1p1n1u1w) 908 | -10/Mines | Found a hidden stash of uninstalled traps 926 | -10/Mines | Discovered new exit (range 4) 979 | -10/Mines | Found DCF Scrap (13 items) 1030 | -10/Mines | Deemed a non-threat by the Exiles lab entrance 1030 | -10/Mines | Discovered new exit (range 5) 1055 | -10/Mines | Discovered new exit (range 10) 1522 | -10/Mines | Build established: Derelict-Mutant 1535 | -10/Mines | Received a Rocket Launcher from a helpful Derelict 1634 | -10/Mines | Learned location of Storage (-7) 1794 | -10/Mines | Entered Exiles 1841 | -10/Exiles | Met 8R-AWN 1855 | -10/Exiles | Discovered new exit (range 14) 1924 | -10/Exiles | Met EX-HEX 2040 | -10/Exiles | Met EX-DEC 2234 | -10/Exiles | Discovered new exit (range 14) 2366 | -10/Exiles | Met EX-BIN 2541 | -10/Exiles | Entered Mines 2716 | -9/Mines | Core integrity fell below 20% 2753 | -9/Mines | Discovered new exit (range 6) 2783 | -9/Mines | Destroyed by S-10 Pest with Light Assault Rifle Last Messages --------------- 02737_ Acquired Lgt. Assault Rifle. 02739_ Dropped Assault Rifle. 02739_ Acquired Lgt. Assault Rifle. 02753_ EXIT=FOUND 02755_ MSSFTMUWF>HB1KLDU/W2RZH|SE/WZ%UQ O#DPC 02756_ K-01 Serf collects debris. 02758_ S-10 Pest destroyed. 02762_ K-01 Serf collects debris. 02763_ Lgt. Treads destroyed. 02764_ S-10 Pest destroyed. 02765_ K-01 Serf collects debris. 02769_ System corrupted: Sml. Laser failed to cycle. 02769_ K-01 Serf collects debris. 02769_ Ion Engine destroyed. 02772_ K-01 Serf collects debris. 02776_ Lgt. Treads destroyed. 02777_ System corrupted: Beam Cannon rejected. 02779_ K-01 Serf collects debris. [Achievement: Back For More] Map ----- +----------------------------------------------------+ | ????# #??????????????????????????????????????????? | | ????# #??????????????????????????????????????????? | | ????# #??????????????????????????????????????????? | | ????# #??????????????????????????????????????????? | | #####*##?????????????????????????????????????????? | | ##????????????????????????????????????????? | | """ #????????????????????????????????????????? | | # """ *##### #??????????????????????????????????? | | # """= #??????????????????????????????????? | | ## #??????????????????????????????????? | | ?## #######??????????????????????????????????? | | ??## #????????????????????????????????????????? | | #??### #????????????????????????????????????????? | | #???# #????????????????????????????????????????? | | ???# #????????????????????????????????????????? | | ##?# #??????????????######????????????????????? | | #?# #??????????????# #????????????????????? | | # #?# ##### #?# #????????????????????? | | # ### #?????#=%%k#????????????????????? | | # ## ###### #??????#%===#????????????????????? | | ?# #??????????????#[ = #????????????????????? | | ?# #??????????????# #????????????????????? | | ## #####???????###????#s< #????????????????????? | | # #####??????? #????# #????????????????????? | | #???????# #????# ?????????????????????? | | ## #???##### #?????#@#??????????????????????? | | ## #####= *= #?????#]#??????????????????????? | | ### = [=### ####### #??????????????????????? | | #####?#######*#?#[ #??????????????????????? | | #???????????# #?######### #??????????????????????? | | ????????????# ?????????# #??????????????????????? | | ???????????? ????????# #??????????????????????? | | ???????????? #???????# ??????????????????????? | | ????????????# #???????# ??????????????????????? | | ????????????## #???????# ??????????????????????? | | ?????????????? ????????# ??????????????????????? | | ?????????????? ????????] #?????????????????????? | | ?????????????? ???????? ?????????????????????? | | ?????????????? ??????? ! ?????????????????????? | | ?????????????? ??????? ?????????????????????? | | ?????????????? ???????# = ?????????????????????? | | ?????????????? ????????# ?????????????????????? | | ??????????????? ??????????# ????????????????????? | | ??????????????????????????? ????????????????????? | | ??????????????????????????? ?????????????????????? | | ?????????????????????????????????????????????????? | | ?????????????????????????????????????????????????? | | ?????????????????????????????????????????????????? | | ?????????????????????????????????????????????????? | | ?????????????????????????????????????????????????? | +----------------------------------------------------+ Best States ------------- Heat Dissipation 25 Energy Generation 14 Energy Capacity 250 Matter Stores 300 Matter Capacity 300 Sight Range 16 Terrain Scan Range 16 Terrain Scan Density 10 Armor Coverage 150 Evasion (%) 55 Recoil Reduction 2 Item Schematics ----------------- None Robot Schematics ------------------ None Fabricated ------------ Nothing Repaired ---------- Nothing Studied --------- None Alien Tech Used ----------------- None Achievements -------------- Back For More I Survived The Infestation Challenges ------------ None Game ------ Seed NetworkProjectionMount Manual? 0 Play Time 00:17:56 Cumulative 17.9 hours Start 2026.04.07 @ 15:03:27 End 2026.04.07 @ 15:20:39 Sessions 1 Manual Loads 0 Difficulty Rogue Special Mode None Game No. 50 Rogue 50 Adventurer 0 Explorer 0 Win Type - Total 0 Types 0/0/0/0/0/0/0/0/0/0 Lore% 9 Gallery% 19 Achievement% 11 Wizard Run 0 Options --------- Layout 2 ASCII 0 Keyboard 0 Movement Mouse Keybinds 0 Fullscreen 1 Font 24/Crisp Map View 50x44 Zoom Use 0% Tactical HUD 1 Map Filters NONE Filters NONE Steam 1 RUN: 496f2da2-b3e1-4290-bc02-8fbbb161bd47